fUSD/lending_fUSD_20240517
["ID","MTS","AMOUNT","RATE_DAILY","PERIOD"]
[327257466,1715940635792,-515.70477885,0.00012379,2]
[327257467,1715940635803,-500.0,0.00012379,2]
[327257468,1715940635814,-500.0,0.00012379,2]
[327257469,1715940635824,-500.0,0.00012379,2]
[327257470,1715940635835,-500.0,0.00012379,2]
[327257471,1715940635845,-500.0,0.00012379,2]
[327257472,1715940635856,-500.0,0.00012379,2]
[327257473,1715940635867,-507.37856364,0.00012379,2]
[327257474,1715940635878,-584.26315203,0.00012379,2]
[327257475,1715940635889,-500.0,0.00012379,2]
[327257476,1715940635899,-500.0,0.00012379,2]
[327257477,1715940635910,-500.0,0.00012379,2]
[327257478,1715940635921,-500.0,0.00012379,2]
[327257479,1715940635932,-500.0,0.00012379,2]
[327257480,1715940635942,-500.0,0.00012379,2]
[327257481,1715940635954,-500.0,0.00012379,2]
[327257482,1715940635965,-500.0,0.00012379,2]
[327257483,1715940635975,-500.0,0.00012379,2]
[327257484,1715940635986,-627.26372992,0.00012379,2]
[327257485,1715940635996,-500.0,0.00012379,2]
[327257486,1715940636007,-500.0,0.00012379,2]
[327257487,1715940636018,-500.0,0.00012379,2]
[327257488,1715940636028,-500.0,0.00012379,2]
[327257489,1715940636039,-500.0,0.00012379,2]
[327257490,1715940636050,-500.0,0.00012379,2]
[327257491,1715940636061,-523.16885202,0.00012379,2]
[327257492,1715940636071,-500.0,0.00012379,2]
[327257493,1715940636082,-500.0,0.00012379,2]
[327257494,1715940636092,-500.0,0.00012379,2]
[327257495,1715940636103,-163.430228,0.00012379,2]
[327257496,1715940636114,-500.0,0.00012379,2]
[327257497,1715940636124,-500.0,0.00012379,2]
[327257498,1715940636136,-500.0,0.00012379,2]
[327257499,1715940636146,-245.81626898,0.00012379,2]
[327257500,1715940636157,-500.0,0.00012379,2]
[327257501,1715940636168,-151.0,0.00012379,2]
[327257502,1715940636178,-500.0,0.00012379,2]
[327257503,1715940636189,-193.46,0.00012379,2]
[327257504,1715940636199,-500.0,0.00012379,2]
[327257505,1715940636209,-500.0,0.00012379,2]
[327257506,1715940636462,-500.0,0.00012379,2]
[327257507,1715940636480,-151.310856,0.00012379,2]
[327257508,1715940636491,-500.0,0.00012379,2]
[327257509,1715940636500,-500.0,0.00012379,2]
[327257510,1715940636510,-500.0,0.00012379,2]
[327257511,1715940636519,-500.0,0.00012379,2]
[327257512,1715940636529,-500.0,0.00012379,2]
[327257513,1715940636539,-299.17,0.00012379,2]
[327257514,1715940636549,-500.0,0.00012379,2]
[327257515,1715940636560,-500.0,0.00012379,2]
[327257516,1715940636569,-500.0,0.00012379,2]
[327257517,1715940636579,-500.0,0.00012379,2]
[327257518,1715940636589,-500.0,0.00012379,2]
[327257519,1715940636599,-500.0,0.00012379,2]
[327257520,1715940636608,-328.09174219,0.00012379,2]
[327257521,1715940636618,-151.0,0.00012379,2]
[327257522,1715940636628,-500.0,0.00012379,2]
[327257523,1715940636639,-500.0,0.00012379,2]
[327257524,1715940636648,-500.0,0.00012379,2]
[327257525,1715940636658,-151.0,0.00012379,2]
[327257526,1715940636667,-500.0,0.00012379,2]
[327257527,1715940636676,-413.55,0.00012379,2]
[327257528,1715940636685,-531.29435856,0.00012379,2]
[327257529,1715940636695,-500.0,0.00012379,2]
[327257530,1715940636705,-500.0,0.00012379,2]
[327257531,1715940636714,-500.0,0.00012379,2]
[327257532,1715940636723,-408.84,0.00012379,2]
[327257533,1715940636735,-500.0,0.00012379,2]
[327257534,1715940636744,-500.0,0.00012379,2]
[327257535,1715940636753,-500.0,0.00012379,2]
[327257536,1715940636762,-500.0,0.00012379,2]
[327257537,1715940636774,-500.0,0.00012379,2]
[327257538,1715940636783,-500.0,0.00012379,2]
[327257539,1715940636792,-500.0,0.00012379,2]
[327257540,1715940636801,-500.0,0.00012379,2]
[327257541,1715940636810,-500.0,0.00012379,2]
[327257542,1715940636819,-500.0,0.00012379,2]
[327257543,1715940636828,-500.0,0.00012379,2]
[327257544,1715940636838,-377.96,0.00012379,2]
[327257545,1715940636847,-500.0,0.00012379,2]
[327257546,1715940636856,-611.17,0.00012379,2]
[327257547,1715940636866,-500.0,0.00012379,2]
[327257548,1715940636875,-522.47090413,0.00012379,2]
[327257549,1715940636884,-151.0,0.00012379,2]
[327257550,1715940636894,-500.0,0.00012379,2]
[327257551,1715940636903,-500.0,0.00012379,2]
[327257552,1715940636912,-500.0,0.00012379,2]
[327257553,1715940636922,-442.04,0.00012379,2]
[327257554,1715940636931,-151.0,0.00012379,2]
[327257555,1715940636941,-151.0,0.00012379,2]
[327257556,1715940636951,-500.0,0.00012379,2]
[327257557,1715940636960,-500.0,0.00012379,2]
[327257558,1715940636969,-500.0,0.00012379,2]
[327257559,1715940636979,-500.0,0.00012379,2]
[327257560,1715940636988,-167.21772332,0.00012379,2]
[327257561,1715940636998,-520.37662836,0.00012379,2]
[327257562,1715940637008,-500.0,0.00012379,2]
[327257563,1715940637017,-564.53246837,0.00012379,2]
[327257564,1715940637027,-500.0,0.00012379,2]
[327257565,1715940637036,-427.97978023,0.00012379,2]
[327257566,1715940637045,-500.0,0.00012379,2]
[327257567,1715940637054,-151.0,0.00012379,2]
[327257568,1715940637063,-575.94572437,0.00012379,2]
[327257569,1715940637072,-151.0,0.00012379,2]
[327257570,1715940637081,-151.0,0.00012379,2]
[327257571,1715940637091,-151.0,0.00012379,2]
[327257572,1715940637100,-558.90671679,0.00012379,2]
[327257573,1715940637109,-500.0,0.00012379,2]
[327257574,1715940637119,-546.40392868,0.00012379,2]
[327257575,1715940637128,-245.97332976,0.00012379,2]
[327257576,1715940637137,-500.0,0.00012379,2]
[327257577,1715940637147,-209.98616442,0.00012379,2]
[327257578,1715940637156,-151.0,0.00012379,2]
[327257579,1715940637166,-151.0,0.00012379,2]
[327257580,1715940637175,-152.222652,0.00012379,2]
[327257581,1715940637185,-500.0,0.00012379,2]
[327257582,1715940637194,-500.0,0.00012379,2]
[327257583,1715940637203,-500.0,0.00012379,2]
[327257584,1715940637212,-493.19117692,0.00012379,2]
[327257585,1715940637221,-500.0,0.00012379,2]
[327257586,1715940637231,-500.0,0.00012379,2]
[327257587,1715940637240,-500.0,0.00012379,2]
[327257588,1715940637250,-500.0,0.00012379,2]
[327257589,1715940637259,-389.61199812,0.00012379,2]
[327257590,1715940637268,-500.0,0.00012379,2]
[327257591,1715940637277,-500.0,0.00012379,2]
[327257592,1715940637287,-500.0,0.00012379,2]
[327257593,1715940637296,-500.0,0.00012379,2]
[327257594,1715940637306,-500.0,0.00012379,2]
[327257595,1715940637315,-500.0,0.00012379,2]
[327257596,1715940637329,-500.0,0.00012379,2]
[327257597,1715940637339,-217.23348852,0.00012379,2]
[327257598,1715940637348,-500.0,0.00012379,2]
[327257599,1715940637359,-500.0,0.00012379,2]
[327257600,1715940637368,-151.0,0.00012379,2]
[327257601,1715940637380,-500.0,0.00012379,2]
[327257602,1715940637389,-197.432528,0.00012379,2]
[327257603,1715940637400,-229.54,0.00012379,2]
[327257604,1715940637409,-152.137654,0.00012379,2]
[327257605,1715940637419,-2002.98,0.00012379,2]
[327257606,1715940637428,-2002.98,0.00012379,2]
[327257607,1715940637438,-2002.98,0.00012379,2]
[327257608,1715940637447,-2002.98,0.00012379,2]
[327257609,1715940637457,-2002.98,0.00012379,2]
[327257610,1715940637466,-2002.98,0.00012379,2]
[327257611,1715940637476,-2002.98,0.00012379,2]
[327257612,1715940637485,-2002.98,0.00012379,2]
[327257613,1715940637495,-2002.98,0.00012379,2]
[327257614,1715940637504,-151.0,0.00012379,2]
[327257615,1715940637514,-500.0,0.00012379,2]
[327257616,1715940637524,-500.0,0.00012379,2]
[327257617,1715940637533,-500.0,0.00012379,2]
[327257618,1715940637543,-500.0,0.00012379,2]
[327257619,1715940637552,-500.0,0.00012379,2]
[327257620,1715940637562,-500.0,0.00012379,2]
[327257621,1715940637571,-500.0,0.00012379,2]
[327257622,1715940637581,-500.0,0.00012379,2]
[327257623,1715940637591,-500.0,0.00012379,2]
[327257624,1715940637600,-151.0,0.00012379,2]
[327257625,1715940637611,-151.0,0.00012379,2]
[327257626,1715940637620,-151.0,0.00012379,2]
[327257627,1715940637631,-151.0,0.00012379,2]
[327257628,1715940637640,-500.0,0.00012379,2]
[327257629,1715940637649,-500.0,0.00012379,2]
[327257630,1715940637659,-500.0,0.00012379,2]
[327257631,1715940637668,-500.0,0.00012379,2]
[327257632,1715940637677,-500.0,0.00012379,2]
[327257633,1715940637688,-500.0,0.00012379,2]
[327257634,1715940637697,-500.0,0.00012379,2]
[327257635,1715940637706,-500.0,0.00012379,2]
[327257636,1715940637716,-500.0,0.00012379,2]
[327257637,1715940637725,-500.0,0.00012379,2]
[327257638,1715940637735,-500.0,0.00012379,2]
[327257639,1715940637744,-151.0,0.00012379,2]
[327257640,1715940637753,-500.0,0.00012379,2]
[327257641,1715940637763,-500.0,0.00012379,2]
[327257642,1715940637771,-500.0,0.00012379,2]
[327257643,1715940637781,-500.0,0.00012379,2]
[327257644,1715940637790,-500.0,0.00012379,2]
[327257645,1715940637800,-500.0,0.00012379,2]
[327257646,1715940637809,-500.0,0.00012379,2]
[327257647,1715940637818,-500.0,0.00012379,2]
[327257648,1715940637827,-500.0,0.00012379,2]
[327257649,1715940637837,-500.0,0.00012379,2]
[327257650,1715940637846,-500.0,0.00012379,2]
[327257651,1715940637855,-536.7737811,0.00012379,2]
[327257652,1715940637865,-500.0,0.00012379,2]
[327257653,1715940637874,-391.81613446,0.00012379,2]
[327257654,1715940637886,-151.0,0.00012379,2]
[327257655,1715940637895,-500.0,0.00012379,2]
[327257656,1715940637905,-500.0,0.00012379,2]
[327257657,1715940637914,-583.12,0.00012379,2]
[327257658,1715940637923,-152.31357,0.00012379,2]
[327257659,1715940637932,-151.0,0.00012379,2]
[327257660,1715940637941,-271.690545,0.00012379,2]
[327257661,1715940637950,-271.690545,0.00012379,2]
[327257662,1715940637959,-507.04802054,0.00012379,2]
[327257663,1715940637968,-176.54552337,0.00012379,2]
[327257664,1715940637977,-154.498824,0.00012379,2]
[327257665,1715940637987,-500.0,0.00012379,2]
[327257666,1715940637997,-326.15,0.00012379,2]
[327257667,1715940638006,-500.0,0.00012379,2]
[327257668,1715940638015,-574.44,0.00012379,2]
[327257669,1715940638024,-500.0,0.00012379,2]
[327257670,1715940638033,-413.31236736,0.00012379,2]
[327257671,1715940638042,-500.0,0.00012379,2]
[327257672,1715940638052,-500.0,0.00012379,2]
[327257673,1715940638060,-500.0,0.00012379,2]
[327257674,1715940638069,-500.0,0.00012379,2]
[327257675,1715940638079,-500.0,0.00012379,2]
[327257676,1715940638088,-500.0,0.00012379,2]
[327257677,1715940638097,-500.0,0.00012379,2]
[327257678,1715940638106,-500.0,0.00012379,2]
[327257679,1715940638116,-500.0,0.00012379,2]
[327257680,1715940638125,-500.0,0.00012379,2]
[327257681,1715940638135,-500.0,0.00012379,2]
[327257682,1715940638144,-500.0,0.00012379,2]
[327257683,1715940638153,-500.0,0.00012379,2]
[327257684,1715940638162,-500.0,0.00012379,2]
[327257685,1715940638172,-500.0,0.00012379,2]
[327257686,1715940638182,-554.53,0.00012379,2]
[327257687,1715940638191,-500.0,0.00012379,2]
[327257688,1715940638200,-500.0,0.00012379,2]
[327257689,1715940638209,-500.0,0.00012379,2]
[327257690,1715940638218,-500.0,0.00012379,2]
[327257691,1715940638228,-500.0,0.00012379,2]
[327257692,1715940638237,-500.0,0.00012379,2]
[327257693,1715940638246,-500.0,0.00012379,2]
[327257694,1715940638255,-500.0,0.00012379,2]
[327257695,1715940638264,-500.0,0.00012379,2]
[327257696,1715940638273,-500.0,0.00012379,2]
[327257697,1715940638283,-151.0,0.00012379,2]
[327257698,1715940638292,-500.0,0.00012379,2]
[327257699,1715940638301,-500.0,0.00012379,2]
[327257700,1715940638311,-500.0,0.00012379,2]
[327257701,1715940638322,-500.0,0.00012379,2]
[327257702,1715940638335,-500.0,0.00012379,2]
[327257703,1715940638344,-500.0,0.00012379,2]
[327257704,1715940638353,-500.0,0.00012379,2]
[327257705,1715940638363,-151.0,0.00012379,2]
[327257706,1715940638374,-500.0,0.00012379,2]
[327257707,1715940638384,-151.814356,0.00012379,2]
[327257708,1715940638394,-500.0,0.00012379,2]
[327257709,1715940638403,-500.0,0.00012379,2]
[327257710,1715940638412,-500.0,0.00012379,2]
[327257711,1715940638422,-500.0,0.00012379,2]
[327257712,1715940638431,-523.55,0.00012379,2]
[327257714,1715940638441,-565.8,0.00012379,2]
[327257716,1715940638450,-500.0,0.00012379,2]
[327257718,1715940638460,-435.44293881,0.00012379,2]
[327257720,1715940638469,-190.74178983,0.00012379,2]
[327257722,1715940638479,-500.0,0.00012379,2]
[327257724,1715940638487,-500.0,0.00012379,2]
[327257726,1715940638497,-500.0,0.00012379,2]
[327257728,1715940638506,-276.13793635,0.00012379,2]
[327257729,1715940638516,-151.0,0.00012379,2]
[327257730,1715940638525,-151.0,0.00012379,2]
[327257731,1715940638534,-182.798992,0.00012379,2]
[327257732,1715940638544,-182.798992,0.00012379,2]
[327257733,1715940638553,-151.0,0.00012379,2]
[327257734,1715940638562,-151.0,0.00012379,2]
[327257735,1715940638571,-182.798992,0.00012379,2]
[327257736,1715940638581,-151.0,0.00012379,2]
[327257737,1715940638590,-182.798992,0.00012379,2]
[327257738,1715940638599,-151.0,0.00012379,2]
[327257739,1715940638609,-245.45,0.00012379,2]
[327257740,1715940638618,-500.0,0.00012379,2]
[327257743,1715940638629,-295.25485082,0.00012379,2]
[327257746,1715940638639,-500.0,0.00012379,2]
[327257747,1715940638649,-507.10812935,0.00012379,2]
[327257748,1715940638659,-372.37,0.00012379,2]
[327257749,1715940638668,-151.0,0.00012379,2]
[327257750,1715940638677,-151.0,0.00012379,2]
[327257751,1715940638686,-500.0,0.00012379,2]
[327257752,1715940638696,-500.0,0.00012379,2]
[327257753,1715940638705,-199.92217928,0.00012379,2]
[327257754,1715940638715,-1647.03,0.00012379,2]
[327257755,1715940638725,-1647.03,0.00012379,2]
[327257756,1715940638734,-1647.03,0.00012379,2]
[327257757,1715940638743,-1647.03,0.00012379,2]
[327257758,1715940638752,-1647.03,0.00012379,2]
[327257759,1715940638761,-1647.03,0.00012379,2]
[327257760,1715940638771,-1647.03,0.00012379,2]
[327257761,1715940638780,-1647.03,0.00012379,2]
[327257762,1715940638789,-500.0,0.00012379,2]
[327257763,1715940638798,-1647.03,0.00012379,2]
[327257764,1715940638807,-500.0,0.00012379,2]
[327257765,1715940638817,-500.0,0.00012379,2]
[327257766,1715940638826,-500.0,0.00012379,2]
[327257767,1715940638835,-500.0,0.00012379,2]
[327257768,1715940638844,-500.0,0.00012379,2]
[327257769,1715940638853,-500.0,0.00012379,2]
[327257770,1715940638862,-500.0,0.00012379,2]
[327257771,1715940638871,-500.0,0.00012379,2]
[327257772,1715940638882,-500.0,0.00012379,2]
[327257773,1715940638892,-500.0,0.00012379,2]
[327257774,1715940638901,-500.0,0.00012379,2]
[327257775,1715940638911,-500.0,0.00012379,2]
[327257776,1715940638922,-500.0,0.00012379,2]
[327257777,1715940638932,-509.33020484,0.00012379,2]
[327257778,1715940638944,-500.0,0.00012379,2]
[327257779,1715940638954,-500.0,0.00012379,2]
[327257780,1715940638965,-500.0,0.00012379,2]
[327257781,1715940638975,-500.0,0.00012379,2]
[327257782,1715940638984,-417.37023655,0.00012379,2]
[327257783,1715940638993,-500.0,0.00012379,2]
[327257784,1715940639002,-589.84725396,0.00012379,2]
[327257785,1715940639012,-500.0,0.00012379,2]
[327257786,1715940639021,-500.0,0.00012379,2]
[327257787,1715940639031,-500.0,0.00012379,2]
[327257788,1715940639040,-609.63223593,0.00012379,2]
[327257789,1715940639050,-151.0,0.00012379,2]
[327257790,1715940639059,-151.0,0.00012379,2]
[327257791,1715940639068,-500.0,0.00012379,2]
[327257792,1715940639077,-500.0,0.00012379,2]
[327257793,1715940639087,-500.0,0.00012379,2]
[327257794,1715940639096,-2118.25,0.00012379,2]
[327257795,1715940639106,-274.91,0.00012379,2]
[327257796,1715940639115,-500.0,0.00012379,2]
[327257798,1715940639124,-2118.25,0.00012379,2]
[327257799,1715940639134,-500.0,0.00012379,2]
[327257800,1715940639143,-2118.25,0.00012379,2]
[327257801,1715940639153,-458.10008536,0.00012379,2]
[327257802,1715940639163,-2118.25,0.00012379,2]
[327257803,1715940639172,-2118.25,0.00012379,2]
[327257804,1715940639181,-2118.25,0.00012379,2]
[327257805,1715940639191,-2118.25,0.00012379,2]
[327257806,1715940639200,-2118.25,0.00012379,2]
[327257807,1715940639209,-2118.25,0.00012379,2]
[327257808,1715940639218,-500.0,0.00012379,2]
[327257809,1715940639228,-500.0,0.00012379,2]
[327257810,1715940639237,-500.0,0.00012379,2]
[327257811,1715940639246,-211.98238854,0.00012379,2]
[327257812,1715940639256,-500.0,0.00012379,2]
[327257813,1715940639265,-500.0,0.00012379,2]
[327257814,1715940639274,-151.0,0.00012379,2]
[327257815,1715940639284,-500.0,0.00012379,2]
[327257816,1715940639293,-500.0,0.00012379,2]
[327257817,1715940639302,-500.0,0.00012379,2]
[327257818,1715940639311,-240385.52401755,0.0001238,2]
[327257819,1715940639544,-500.0,0.00012379,2]
[327257820,1715940639554,-486.26,0.00012379,2]
[327257821,1715940639563,-784.26536578,0.0001238,2]
[327257823,1715940639837,-251.87596664,0.0001218,2]
[327257824,1715940639849,-1721.67843336,0.0001218,2]
[327257825,1715940639859,-1408.95088381,0.0001228,2]
[327257826,1715940639868,-2819.51100904,0.0001238,2]
[327257827,1715940639880,-47676.97026289,0.0001238,2]
[327257828,1715940639892,-39773.6977575,0.0001238,2]
[327257829,1715940639903,-105349.75884305,0.0001238,2]
[327257830,1715940639914,-12237.09312621,0.0001238,2]
[327257831,1715940640293,-2509.40765514,0.0001238,2]
[327257832,1715940640305,-584.00738402,0.0001238,2]
[327257833,1715940640596,-6358.17228452,0.0001238,2]
[327257834,1715940640751,-1287.62346202,0.0001238,2]
[327257837,1715940640763,-300777.90682008,0.0001238,2]
[327257897,1715940643116,-151.0,0.0001234,2]
[327257899,1715940643126,-151.0,0.0001234,2]
[327257901,1715940643137,-151.0,0.00012379,2]
[327257903,1715940643146,-151.0,0.00012379,2]
[327257904,1715940643155,-151.0,0.00012379,2]
[327257906,1715940643163,-151.0,0.00012379,2]
[327257908,1715940643173,-2417.8,0.0001238,2]
[327257910,1715940643185,-500.32600203,0.0001238,2]
[327257912,1715940643196,-63241.59275777,0.0001238,2]
[327257916,1715940643261,-7237.83311816,0.0001238,2]
[327257945,1715940648703,-6065.2,0.00012228,2]
[327257946,1715940648884,-1434.8,0.00012228,2]
[327257947,1715940648898,-204.356323,0.0001234,2]
[327257948,1715940648908,-204.356323,0.00012379,2]
[327257949,1715940648917,-809.01932299,0.00012379,2]
[327257950,1715940648926,-204.356323,0.00012379,2]
[327257951,1715940648935,-666540.42197708,0.0001238,2]
[327257952,1715940648947,-303824.29439757,0.0001238,2]
[327257953,1715940701679,152.52819144,0.000235,120]
[327257958,1715941187820,151.0,0.00020469,120]
[327258288,1715941832379,-1199.22,9.791e-05,2]
[327258289,1715941832388,-250.0,0.000106,2]
[327258290,1715941832398,-914.28,0.00010644,2]
[327258291,1715941832416,-916.52,0.00010658,2]
[327258292,1715941832428,-37.65654,0.00010711,15]
[327258293,1715941832443,-631.91346,0.00010711,15]
[327258294,1715941832453,-870.95,0.0001083,2]
[327258295,1715941832463,-158.05,0.0001099,2]
[327258296,1715941832473,-158.05,0.00011026,2]
[327258297,1715941832483,-159.02,0.00011039,2]
[327258298,1715941832492,-158.05,0.00011061,2]
[327258299,1715941832502,-158.05,0.00011097,2]
[327258300,1715941832512,-499.99,0.00011097,2]
[327258301,1715941832522,-191.36,0.00011105,2]
[327258302,1715941832531,-158.05,0.00011133,2]
[327258303,1715941832540,-158.05,0.00011169,2]
[327258304,1715941832549,-158.05,0.00011205,2]
[327258306,1715941832559,-158.05,0.0001124,2]
[327258307,1715941832568,-158.05,0.00011276,2]
[327258308,1715941832578,-158.05,0.00011312,2]
[327258309,1715941832588,-158.05,0.00011348,2]
[327258310,1715941832597,-158.05,0.00011383,2]
[327258311,1715941832607,-158.05,0.00011419,2]
[327258312,1715941832616,-158.05,0.00011455,2]
[327258313,1715941832626,-158.05,0.00011491,2]
[327258314,1715941832635,-158.05,0.00011527,2]
[327258315,1715941832646,-158.05,0.00011562,2]
[327258316,1715941832656,-171.89,0.00011709,2]
[327258317,1715941832666,-210.98215075,0.00011709,2]
[327258318,1715941832691,-39.01784925,0.00011709,2]
[327258319,1715941832700,-916.52,0.0001199,2]
[327258320,1715941832710,-1176.78913623,0.00012055,2]
[327258358,1715941839296,-561.10086377,0.00012055,2]
[327258360,1715941839306,-830.6,0.00012055,2]
[327258362,1715941839316,-1199.22,0.00012055,2]
[327258364,1715941839326,-368.051,0.000122,2]
[327258366,1715941839336,-1000.0,0.000122,2]
[327258368,1715941839346,-439.619,0.000122,2]
[327258370,1715941839356,-7500.0,0.00012209,2]
[327258372,1715941839366,-50241.76024692,0.00012235,2]
[327258374,1715941839376,-1000.0,0.00012248,2]
[327258376,1715941839386,-10000.0,0.00012279,2]
[327258378,1715941839395,-32209.40773236,0.00012279,2]
[327258435,1715941843500,-1387.59246828,0.00012115,2]
[327258436,1715941843686,-4001.01306272,0.00012115,2]
[327258437,1715941843698,-4611.394469,0.00012115,2]
[327258438,1715941843708,-45278.24866764,0.00012279,2]
[327258439,1715941843718,-15938.0169,0.0001228,2]
[327258440,1715941843733,-29612.115339,0.000123,2]
[327258441,1715941843743,-50241.76024683,0.00012309,2]
[327258442,1715941843752,-500.0,0.00012328,2]
[327258443,1715941843762,-557.48239764,0.00012328,2]
[327258444,1715941843774,-500.0,0.00012328,2]
[327258445,1715941843784,-500.0,0.00012328,2]
[327258446,1715941843793,-500.0,0.00012328,2]
[327258447,1715941843804,-500.0,0.00012328,2]
[327258448,1715941843814,-206.04790567,0.00012335,2]
[327258449,1715941843824,-1168.41,0.00012347,2]
[327258450,1715941843834,-500.0,0.00012347,2]
[327258451,1715941843843,-960.77,0.00012347,2]
[327258452,1715941843853,-800.0,0.00012356,2]
[327258453,1715941843863,-162.7521184,0.0001237,2]
[327258454,1715941843873,-1967.06,0.00012378,2]
[327258455,1715941843883,-500.0,0.00012378,2]
[327258456,1715941843892,-500.0,0.00012378,2]
[327258457,1715941843902,-500.0,0.00012378,2]
[327258458,1715941843911,-500.0,0.00012378,2]
[327258459,1715941843922,-1235.65,0.00012378,2]
[327258460,1715941843932,-561.1572211,0.00012378,2]
[327258461,1715941843942,-500.0,0.00012379,2]
[327258462,1715941843952,-389.0773851,0.00012379,2]
[327258463,1715941843961,-500.0,0.00012379,2]
[327258464,1715941843972,-515.19741678,0.00012379,2]
[327258465,1715941843981,-522.668824,0.00012379,2]
[327258466,1715941843991,-500.0,0.00012379,2]
[327258468,1715941844000,-592.18585114,0.00012379,2]
[327258470,1715941844010,-500.0,0.00012379,2]
[327258472,1715941844019,-321.64287192,0.00012379,2]
[327258474,1715941844029,-549.24429529,0.00012379,2]
[327258476,1715941844038,-500.0,0.00012379,2]
[327258478,1715941844047,-500.0,0.00012379,2]
[327258480,1715941844057,-500.0,0.00012379,2]
[327258481,1715941844067,-500.0,0.00012379,2]
[327258482,1715941844077,-500.0,0.00012379,2]
[327258483,1715941844087,-500.0,0.00012379,2]
[327258484,1715941844096,-500.0,0.00012379,2]
[327258485,1715941844106,-500.0,0.00012379,2]
[327258486,1715941844116,-500.0,0.00012379,2]
[327258487,1715941844126,-500.0,0.00012379,2]
[327258488,1715941844136,-500.0,0.00012379,2]
[327258489,1715941844146,-500.0,0.00012379,2]
[327258490,1715941844156,-500.0,0.00012379,2]
[327258491,1715941844165,-500.0,0.00012379,2]
[327258492,1715941844176,-568.11,0.00012379,2]
[327258493,1715941844186,-500.0,0.00012379,2]
[327258494,1715941844196,-500.0,0.00012379,2]
[327258495,1715941844206,-249.86,0.00012379,2]
[327258496,1715941844216,-500.0,0.00012379,2]
[327258497,1715941844226,-403.63,0.00012379,2]
[327258498,1715941844235,-350.18032505,0.00012379,2]
[327258499,1715941844245,-500.0,0.00012379,2]
[327258500,1715941844254,-500.0,0.00012379,2]
[327258501,1715941844263,-500.0,0.00012379,2]
[327258502,1715941844273,-500.0,0.00012379,2]
[327258503,1715941844282,-500.0,0.00012379,2]
[327258504,1715941844292,-155.85,0.00012379,2]
[327258505,1715941844301,-500.0,0.00012379,2]
[327258506,1715941844311,-500.0,0.00012379,2]
[327258507,1715941844320,-608.98,0.00012379,2]
[327258508,1715941844330,-500.0,0.00012379,2]
[327258509,1715941844340,-352.97489272,0.00012379,2]
[327258510,1715941844350,-500.0,0.00012379,2]
[327258511,1715941844359,-500.0,0.00012379,2]
[327258512,1715941844369,-500.0,0.00012379,2]
[327258513,1715941844379,-500.0,0.00012379,2]
[327258514,1715941844388,-364.2,0.00012379,2]
[327258515,1715941844398,-500.0,0.00012379,2]
[327258516,1715941844407,-1967.06,0.00012379,2]
[327258517,1715941844417,-1967.06,0.00012379,2]
[327258518,1715941844428,-1967.06,0.00012379,2]
[327258519,1715941844437,-1967.06,0.00012379,2]
[327258520,1715941844447,-1967.06,0.00012379,2]
[327258521,1715941844457,-1967.06,0.00012379,2]
[327258522,1715941844468,-1967.06,0.00012379,2]